{"text_format":"1","workbook":"xlsx","n_sheets":5,"sheets":["Guide","Grille de surveillance","Récap","Pièces contrôlées","Donnees"],"not_rendered":{"charts":0,"images":3,"macros":0,"external_links":0,"defined_names":4,"comments":0,"pivot_tables":0},"unopened":[],"bounds":{"document_bytes":16777216,"sheet_cells":100000,"rows_first":2000,"rows_last":500,"rows_between":2000,"halvings":0,"cell_chars":16384,"cell_head_chars":4096},"cells_cut":0,"cells_raw":0,"read":"whole","date_system":"1900"}

{"sheet":"Guide","index":0,"n_rows":76,"n_cols":7,"rows_kept":76,"cut":false,"hidden":false,"merged":[[68,0,68,11],[1,1,1,2],[2,3,2,10],[4,3,4,10],[66,4,66,8],[49,0,49,12],[8,0,8,12],[23,4,23,8],[45,4,45,8],[10,0,10,12],[47,0,47,12]]}
[]
[null,"Office de l'accueil\nde jour des enfants"]
[null,"de jour des enfants",null,"GUIDE DE LA GRILLE DE SURVEILLANCE "]
[]
[null,"Rue de la Paix 4",null," DE L’ACCUEIL COLLECTIF DE JOUR PRESCOLAIRE A LA DEMI-JOURNEE"]
[null,"1014 Lausanne"]
[]
[]
["Informations générales"]
[]
["Cette grille de surveillance est un outil permettant de vérifier la conformité de l’institution au regard de l’ordonnance fédérale du 19 octobre 1977 sur le placement d’enfants (OPE), de la loi du 20 juin 2006 sur l’accueil de jour des enfants (LAJE), du règlement du 3 avril 2019 d’application de la loi du 20 juin 2006 sur l’accueil de jour des enfants (RLAJE) et des directives cantonales pour l’accueil collectif de jour préscolaire à la demi- journée (directives)"]
[]
["Liens vers les références légales:"]
["-","OPE","art. 19"]
["-","LAJE","art. 5 et 6"]
["-","Directives "]
[]
["Ce classeur Excel comprend 4 onglets:"]
["-","Le présent guide"]
["-","La grille de surveillance"]
["-","Le récapitulatif"]
["-","Les pièces contrôlées"]
[]
["2e onglet",null,null,null,"Grille de surveillance"]
[]
["Cet onglet se présente en 4 parties:"]
[]
["1)","les informations concernant l'institution"]
[null,"-","Indiquer les informations concernant l'institution"]
[]
["2)","Les informations sur le déroulement de la visite"]
[null,"-","Indiquer dans quel cadre la visite s'est déroulée (groupes observés, personnes vues en entretiens, type de visite)"]
[]
["3)","La vérification du respect des bases légales"]
[null,"-","Cette partie est à compléter au regard de la conformité des bases légales indiquées dans la colonne \"i\""]
[null,"-","Indiquer un \"x\" dans la colonne \"check\" (colonne \"L\") si le critère est rempli "]
[null,"-","La somme des \"x\" donne un certain nombre de points acquis par item (calcul automatique)"]
[]
[null,"Astuce:","Pour aller à la ligne: \"alt\", maintenir appuyé puis \"Enter\""]
[]
["4)","Le résultat, les constats et/ou les recommandations"]
[null,"-","Le résultat final de conformité s'affiche automatiquement à la ligne 262"]
[null,"-","Les points nécessitant une mise en conformité avec des délais de mise en application sont indiqués aux lignes 270 à 279"]
[null,"-","Les recommandations se trouvent aux lignes 283 à 292"]
[]
["3e onglet",null,null,null,"Récapitulatif"]
[]
["Dans cet onglet, vous trouverez une vision d'ensemble, qui se remplit automatiquement, des résultats obtenus par item ainsi que le résultat final de la conformité."]
[]
["Explication du calcul de conformité"]
[]
[null,"La conformité de l'institution se calcule par:"]
[]
["ð","un total de points acquis cumulés sur les items no: ",null,null,null,null,"1.1; 1.2; 3.1; 4.1; 4.2"]
[null,"Conforme",null,"Entre 11 et 8"]
[null,"Partiellement conforme",null,"Entre 7 et 6",null,"[75% - 50%]"]
[null,"Non conforme",null,"Entre 5 et 0",null,"[-50%]"]
[]
["ð","les items 1.3; 1.4; 2.1; 2.2; 3.2 et 4.3 qui font basculer le résultat indépendamment du total de points acquis:"]
[null,1.3,"4 = conforme ; 3 - 0  = partiellement conforme"]
[null,1.4,"3 = conforme ; 2 - 0  = partiellement conforme"]
[null,2.1,"5 - 4 = conforme ; 3 = partiellement conforme ; 2 - 0 = non conforme"]
[null,2.2000000000000002,"5 - 4 = conforme ; 3 = partiellement conforme ; 2 - 0 = non conforme"]
[null,3.2,"3 = conforme ; 2 -0  = partiellement conforme"]
[null,4.3,"18 - 13 = conforme ; 12 - 9 = partiellement conforme ; 8 - 0 = non conforme"]
[]
["4e onglet",null,null,null,"Pièces contrôlées"]
[]
["Dans cet onglet, il s'agit de cocher d'un \"x\" toutes les pièces demandées"]
[]
[]
[]
[]
[]
[]
["V3-01.24"]

{"sheet":"Grille de surveillance","index":1,"n_rows":291,"n_cols":16,"rows_kept":291,"cut":false,"hidden":false,"merged":[[267,2,267,10],[280,2,280,12],[42,15,42,19],[55,15,55,20],[268,11,268,12],[269,11,269,12],[270,11,270,12],[271,11,271,12],[272,11,272,12],[273,11,273,12],[274,11,274,12],[264,2,264,11],[220,2,220,11],[134,2,135,12],[46,2,46,11],[42,2,42,10],[153,2,153,10],[240,2,240,10],[214,2,214,10],[208,2,208,11],[210,2,210,11],[198,2,198,11],[200,2,200,11],[218,2,218,11],[4,4,4,11],[82,1,83,1],[82,2,83,8],[83,9,83,10],[86,2,86,10],[87,2,87,10],[91,2,91,11],[93,2,93,11],[194,2,194,10],[174,1,175,1],[174,2,175,7],[148,2,149,7],[157,2,157,11],[144,2,144,11],[146,2,146,11],[163,1,164,1],[163,2,164,7],[170,2,170,11],[80,2,80,11],[37,1,38,1],[62,1,63,1],[95,1,96,1],[95,2,96,12],[130,2,130,11],[0,15,6,18],[3,4,3,11],[2,4,2,11],[122,2,122,10],[123,2,123,10],[152,2,152,10],[193,2,193,10],[1,2,1,3],[78,2,78,11],[26,2,26,11],[185,2,185,11],[118,2,119,7],[33,1,33,12],[66,2,66,10],[114,2,114,11],[134,1,135,1],[183,2,183,11],[172,2,172,11],[136,1,137,1],[136,2,137,7],[159,2,159,11],[161,1,162,1],[161,2,162,12],[148,1,149,1],[154,2,154,10],[290,2,290,12],[277,2,277,10],[272,2,272,10],[273,2,273,10],[274,2,274,10],[275,2,275,10],[276,2,276,10],[268,2,268,10],[269,2,269,10],[270,2,270,10],[271,2,271,10],[281,2,281,12],[282,2,282,12],[283,2,283,12],[284,2,284,12],[285,2,285,12],[286,2,286,12],[287,2,287,12],[288,2,288,12],[289,2,289,12],[275,11,275,12],[276,11,276,12],[277,11,277,12],[167,2,167,10],[230,2,230,11],[232,2,232,11],[257,1,258,1],[257,2,258,12],[260,2,261,5],[260,6,261,8],[253,2,253,11],[255,2,255,11],[238,2,238,10],[239,2,239,10],[243,2,243,11],[245,2,245,11],[227,2,227,10],[8,1,8,12],[18,1,18,12],[31,1,31,12],[37,2,38,7],[50,2,51,8],[48,2,48,11],[58,2,58,11],[60,2,60,11],[50,1,51,1],[38,9,38,10],[51,9,51,10],[54,2,54,10],[55,2,55,10],[35,1,36,1],[35,2,36,12],[43,2,43,10],[41,2,41,10],[267,11,267,12],[18,15,18,18],[88,2,88,10],[141,2,141,10],[118,1,119,1],[62,2,63,7],[67,2,67,10],[74,2,74,10],[75,2,75,10],[67,15,67,20],[101,15,101,19],[26,15,26,18],[132,2,132,11],[116,2,116,11],[97,1,98,1],[109,2,109,10],[110,2,110,10],[97,2,98,7],[140,2,140,10],[263,2,263,11],[187,1,188,1],[187,2,188,7],[188,9,188,10],[126,2,126,10]]}
[null,null,null,null,null,null,null,null,null,null,null,null,null,null,null,"Hors zone impression"]
[null,null,"Office de l'accueil\nde jour des enfants"]
[null,null,"de jour des enfants",null,"GRILLE DE SURVEILLANCE "]
[]
[null,null,"Rue de la Paix 4",null," DE L’ACCUEIL COLLECTIF DE JOUR PRESCOLAIRE  A LA DEMI-JOURNEE"]
[null,null,"1014 Lausanne"]
[]
[]
[null,"Informations sur l'institution"]
[]
[null,null,null,"Nom de l'institution",null,null,null,null,null,null,"N° autorisation"]
[null,null,null,"Nom de la direction",null,null,null,null,null,null,"Date de la précédente visite"]
[null,null,null,"Adresse mail de la direction",null,null,null,null,null,null,"Date de la visite"]
[null,null,null,"Adresse mail de l'exploitant",null,null,null,null,null,null,"Horaire de la visite (de xh à xh)"]
[null,null,null,"Adresse de l'institution"]
[]
[null,null,null,"Nom(s) CEMA"]
[]
[null,"Informations sur le déroulement de la visite",null,null,null,null,null,null,null,null,null,null,null,null,null,"MARCHE A SUIVRE"]
[]
[null,null,"Groupes observés",null,null,null,"Entretiens",null,null,null,"Type de visite"]
[null,null,null,"jardin d'enfants",null,null,null,"directeur/rice",null,null,null,"annoncée",null,null,null,"Ü Complétez les cellules uniquement par un  \"x\""]
[null,null,null,"halte-jeux",null,null,null,"suppléant-e direction",null,null,null,"impromptue"]
[null,null,null,null,null,null,null,"direction générale"]
[]
[null,null,"Commentaires généraux sur l'institution / visite"]
[null,null,null,null,null,null,null,null,null,null,null,null,null,null,null,"Ü Pour aller à la ligne au sein d'une même cellule : \"Alt\"  maintenir appuyé puis \"Enter\". \n\n"]
[]
[]
[]
[]
[null,"Vérification du respect des bases légales"]
[]
[null,"Par défaut, les renvois légaux concernent les directives cantonales pour l’accueil collectif de jour préscolaire à la demi-journée dans les jardins d’enfants et haltes-jeux "]
[]
[null,"Norme 1","L’institution respecte les exigences légales en matière de direction et de personnel d’encadrement"]
[]
[null,1.1000000000000001,"Les responsabilités de la direction de l’institution sont conformes aux directives ",null,null,null,null,null,null,"Références légales",null,"Points max","Résultat"]
[null,null,null,null,null,null,null,null,null,"art. 15 al. 1 let. b, c et f; art. 17 al. 3 et 18 al. 1 OPE; art. 3 al. 2 et 3; art. 5 al. 3",null,3,{"$f":"COUNTIF(M42:M44,\"x\")","v":0}]
[]
[null,null,"La direction :",null,null,null,null,null,null,null,null,null,"Check"]
[null,"a)","communique les nouveaux engagements à l’OAJE, contrôle l’état de santé du personnel et si les enfants sont sous surveillance médicale, s’ils sont assurés contre la maladie et les accidents et en matière de responsabilité civile"]
[null,"b)","supervise le personnel de l’institution et la prise en charge éducative des enfants (observations, entretiens de collaboration, colloques)"]
[null,"c)","met en place des mesures de protection des travailleuses et travailleurs contre les inégalités et des mesures de santé et de sécurité au travail pour le personnel"]
[]
[null,null,"Commentaires / constats "]
[null,null,null,null,null,null,null,null,null,null,null,null,null,null,null,"Ü La hauteur des lignes est modifiable manuellement"]
[null,null,"Recommandations"]
[]
[]
[null,1.2,"Les exigences légales relatives au taux d’activité de la direction ainsi qu’à son organisation sont respectées ",null,null,null,null,null,null,"Références légales",null,"Points max","Résultat"]
[null,null,null,null,null,null,null,null,null,"art. 3 al. 4, 5 et 6",null,2,{"$f":"COUNTIF(M55:M56,\"x\")","v":0}]
[]
[null,null,"La direction :",null,null,null,null,null,null,null,null,null,"Check"]
[null,"a)","dispose d’un taux de direction conforme aux directives"]
[null,"b)","sa suppléance est assurée et les données correspondent à ce qui est annoncé dans la demande d’autorisation d’exploiter (AE)"]
[]
[null,null,"Commentaires / constats "]
[]
[null,null,"Recommandations"]
[]
[]
[null,1.3,"Le taux d’encadrement éducatif des enfants accueillis est conforme aux directives ",null,null,null,null,null,null,"Références légales",null,"Points max","Résultat"]
[null,null,null,null,null,null,null,null,null,"art. 4",null,4,{"$f":"IF(AND(M67=\"x\",M68=\"x\",M75=\"x\",M76=\"x\"),\"Conforme\",\"Partiellement conforme\")","v":"Partiellement conforme"}]
[null,null,"4 points = conforme",null,"3 - 0 points = partiellement conforme"]
[null,null,null,null,null,null,null,null,null,null,null,null,"Check"]
[null,"a)","Le nombre d’enfants pris en charge dans l’institution est indiqué sur une liste de présence et est conforme à l’autorisation (y compris l’intégration, par demi-journée, de maximum 2 enfants dès 24 mois)"]
[null,"b)","La dotation du personnel d'encadrement est conforme au cadre réglementaire et aux conditions définies dans l’autorisation",null,null,null,null,null,null,null,null,null,{"$f":"IF(AND(C69=\"x\",C70=\"x\",C71=\"x\",C72=\"x\",C73=\"x\"),\"x\",\"\")","v":""},null,null," Ü la cellule \"M69\" se coche automatiquement si la totalité des cellules \"C70\" à \"C74\" sont cochées     \n"]
[null,null,null,"Taux d'encadrement "]
[null,null,null,"Répartition du personnel d’encadrement EDE/ASE/APE"]
[null,null,null,"Temps hors présence enfants (THPE)"]
[null,null,null,"Suivi des apprenti-e-s et stagiaires hors du THPE"]
[null,null,null,"Temps de présence du personnel d’encadrement auprès des enfants (ne dépasse pas 8h30 par jour)"]
[]
[null,"c)","Lorsqu’une seule personne est en charge d’un groupe d’enfants, un adulte peut se rendre en tout temps et sans délai dans l’institution en cas d’urgence "]
[null,"d)","En cas d’accueil d’urgence ponctuel et limité dans le temps, les conditions sont respectées (surface et personnel d’encadrement) et la direction en informe l’OAJE sans délai et par écrit"]
[]
[null,null,"Commentaires / constats "]
[]
[null,null,"Recommandations"]
[]
[]
[null,1.4,"Les conditions d’accueil ",null,null,null,null,null,null,"Références légales",null,"Points max","Résultat"]
[null,null,null,null,null,null,null,null,null,"art. 4; art. 1 al. 2",null,3,{"$f":"IF(AND(M87=\"x\",M88=\"x\",M89=\"x\"),\"Conforme\",\"Partiellement conforme\")","v":"Partiellement conforme"}]
[null,null,"3 points = conforme",null,"2 - 0 points = partiellement conforme"]
[null,null,null,null,null,null,null,null,null,null,null,null,"Check"]
[null,"a)","Le temps d’ouverture quotidien est conforme au cadre réglementaire"]
[null,"b)","La fermeture de midi dure au minimum 45 minutes"]
[null,"c)","Les enfants en âge préscolaire ne bénéficient pas d'un cumul de prestation en cas d'ouverture à midi pour de l'accueil parascolaire",null,null,null,null,null,null,null,null,null,null,"vérifier la phrase"]
[]
[null,null,"Commentaires / constats "]
[]
[null,null,"Recommandations"]
[]
[]
[null,"Norme 2","L'institution respecte les exigences légales en matière de sécurité, de santé et d’hygiène"]
[]
[null,2.1,"La sécurité physique des enfants est assurée ",null,null,null,null,null,null,"Références légales",null,"Points max","Résultat"]
[null,null,null,null,null,null,null,null,null,"art. 5; art. 19",null,5,{"$f":"IF(N113>=4,\"Conforme\",IF(N113=3,\"Partiellement conforme\",\"Non conforme\"))","v":"Non conforme"}]
[null,null,"5 - 4 points = conforme",null,null,"3 points = partiellement conforme ",null,null,null,"2 - 0 points = non conforme"]
[null,null,null,null,null,null,null,null,null,null,null,null,"Check"]
[null,"a)","Toutes les mesures nécessaires à la sécurité des enfants, eu égard à leur âge, ont été prises :",null,null,null,null,null,null,null,null,null,{"$f":"IF(O106>=3,\"x\",\"\")","v":""},null,{"$f":"IF(M102=\"x\",1,0)","v":0}," Ü la cellule \"M103\" se coche automatiquement si au moins 3 "]
[null,null,null,"procédures garantissant la sécurité des enfants exigées par les directives",null,null,null,null,null,null,null,null,null,{"$f":"IF(C103=\"x\",1,0)","v":0},null,"cellules de \"C104\" à \"C107\" sur 4 sont cochées"]
[null,null,null,"copie du permis d’habiter / d'utiliser a été remis à l’OAJE",null,null,null,null,null,null,null,null,null,0]
[null,null,null,"réponse-s suite aux rapports ECA",null,null,null,null,null,null,null,null,null,0]
[null,null,null,"mesures techniques protectrices des enfants (art. 19)",null,null,null,null,null,null,null,null,null,0,{"$f":"SUM(N103:N106)","v":0}]
[]
[null,null,"La direction:"]
[null,"b)","garantit la mise en application des procédures et leur mise à jour ",null,null,null,null,null,null,null,null,null,null,{"$f":"IF(M109=\"x\",1,0)","v":0}]
[null,"c)","organise régulièrement des exercices et formations pour gérer les situations d’urgence et tester les mesures de sécurité, en particulier celles en lien avec l’évacuation en cas d’incendie",null,null,null,null,null,null,null,null,null,null,{"$f":"IF(M110=\"x\",1,0)","v":0}]
[null,"d)","identifie les risques et les dangers liés aux locaux et prend toutes les mesures nécessaires pour la sécurité des enfants (jeux, soins, collation, produits toxiques, espace et matériel dangereux, etc.)",null,null,null,null,null,null,null,null,null,null,0]
[null,"e)","veille à ce que le personnel applique les règles de sécurité au quotidien ",null,null,null,null,null,null,null,null,null,null,0]
[null,null,null,null,null,null,null,null,null,null,null,null,null,{"$f":"SUM(O102+N109+N110+N111+N112)","v":0}]
[null,null,"Commentaires / constats "]
[]
[null,null,"Recommandations"]
[]
[]
[null,2.2000000000000002,"Toutes les mesures nécessaires touchant à la santé des enfants, à l’hygiène des locaux, et du matériel sont prises ",null,null,null,null,null,null,"Références légales",null,"Points max","Résultat"]
[null,null,null,null,null,null,null,null,null,"art. 5 al. 1 let. c et g",null,5,{"$f":"IF(N129>=4,\"Conforme\",IF(N129=3,\"Partiellement conforme\",\"Non conforme\"))","v":"Non conforme"}]
[null,null,"5 - 4 points = conforme",null,null,"3 points = partiellement conforme ",null,null,null,"2 - 0 points = non conforme"]
[null,null,null,null,null,null,null,null,null,null,null,null,"Check"]
[null,"a)","La direction se base sur des documents de référence en matière de prévention, de promotion de la santé, d'hygiène, d'autocontrôle en lien avec la manipulation des denrées alimentaires.",null,null,null,null,null,null,null,null,null,null,{"$f":"IF(M123=\"x\",1,0)","v":0}]
[null,"b)","Toutes les mesures utiles ont été prises pour faire en sorte que les enfants accueillis ne souffrent pas de tabagisme ou de vapotage passif",null,null,null,null,null,null,null,null,null,null,{"$f":"IF(M124=\"x\",1,0)","v":0}]
[null,"c)","Le mobilier et les équipements sont entretenus de façon à garantir l'hygiène",null,null,null,null,null,null,null,null,null,null,{"$f":"IF(M125=\"x\",1,0)","v":0}]
[null,null,null,null,null,null,null,null,null,null,null,null,null,0]
[null,"d)","Le personnel veille à ce que les enfants soient équipés de manière appropriée à la situation (météo, température, etc.) ",null,null,null,null,null,null,null,null,null,null,0]
[null,"e)","Le personnel est attentif aux besoins de soins des enfants",null,null,null,null,null,null,null,null,null,null,0]
[null,null,null,null,null,null,null,null,null,null,null,null,null,{"$f":"SUM(N123:N128)","v":0}]
[null,null,"Commentaires / constats "]
[]
[null,null,"Recommandations"]
[]
[]
[null,"Norme 3","L'institution respecte les exigences légales en matière d’organisation, d’aménagements des locaux et d'équipements"]
[]
[null,3.1,"Aménagements et équipements",null,null,null,null,null,null,"Références légales",null,"Points max","Résultat"]
[null,null,null,null,null,null,null,null,null,"art. 6; art. 7",null,2,{"$f":"COUNTIF(M141:O142,\"x\")","v":0}]
[]
[null,null,null,null,null,null,null,null,null,null,null,null,"Check"]
[null,"a)","Le mobilier et les équipements sont adaptés à l’âge, à la taille et au poids des enfants, de façon à éviter les chutes, et en bon état, afin de prévenir les blessures et l'ingestion de matériaux. Ils permettent aux enfants d'évoluer en toute sécurité."]
[null,"b)","Les espaces dédiés aux enfants sont organisés et aménagés de façon à leur proposer différentes activités en fonction de leurs besoins et de leur âge (activités calmes, activités créatrices, activités motrices, jeu libre, etc.)"]
[]
[null,null,"Commentaires / constats "]
[]
[null,null,"Recommandations"]
[]
[]
[null,3.2,"Les locaux",null,null,null,null,null,null,"Références légales",null,"Points max","Résultat"]
[null,null,null,null,null,null,null,null,null,"art. 6 al. 1 ",null,3,{"$f":"IF(N156>=3,\"Conforme\",\"Partiellement conforme\")","v":"Partiellement conforme"}]
[null,null,"3 points = conforme",null,"2 - 0 points = partiellement conforme"]
[null,null,null,null,null,null,null,null,null,null,null,null,"Check"]
[null,"a)","L’espace intérieur disponible pour les activités éducatives des enfants est d’au moins 3 m2 par enfant, après déduction des espaces de service (mobilier fixe, vestiaire, buanderie, sanitaires, lieux de passage, cave, etc.)",null,null,null,null,null,null,null,null,null,null,{"$f":"COUNTIF(M153,\"x\")","v":0}]
[null,"b)","L’institution est équipée d’un téléphone fonctionnel et accessible en tout temps, y compris lors des sorties",null,null,null,null,null,null,null,null,null,null,0]
[null,"c)","Les locaux et notamment les sanitaires (y compris table à langer pour les enfants de moins de 30 mois), les vestiaires et l'espace extérieur sont conformes aux directives",null,null,null,null,null,null,null,null,null,null,0]
[null,null,null,null,null,null,null,null,null,null,null,null,null,{"$f":"SUM(N153:N155)","v":0}]
[null,null,"Commentaires / constats "]
[]
[null,null,"Recommandations"]
[]
[]
[null,"Norme 4","L'institution respecte les exigences légales en matière de pédagogie et d’organisation"]
[]
[null,4.0999999999999996,"Le projet institutionnel",null,null,null,null,null,null,"Références légales",null,"Points max","Résultat"]
[null,null,null,null,null,null,null,null,null,"art. 8",null,1,{"$f":"COUNTIF(M168,\"x\")","v":0}]
[]
[null,null,null,null,null,null,null,null,null,null,null,null,"Check"]
[null,null,"Le projet institutionnel est complet et actualisé (organisation et infrastructures). Les documents suivants sont à jour  : règlement de l'institution destiné aux parents, assurance responsabilité civile et, si pertinent, statuts de l'exploitant, extrait du registre du commerce, liste des membres de l'organe exécutif."]
[]
[null,null,"Commentaires / constats "]
[]
[null,null,"Recommandations"]
[]
[]
[null,4.2,"Le concept pédagogique ",null,null,null,null,null,null,"Références légales",null,"Points max","Résultat"]
[null,null,null,null,null,null,null,null,null,"art. 9",null,3,{"$f":"COUNTIF(M179:M181,\"x\")","v":0}]
[]
[null,null,null,null,null,null,null,null,null,null,null,null,"Check"]
[null,"a)","Le concept pédagogique répond aux exigences réglementaires et légales"]
[null,"b)","Le concept pédagogique reflète la réalité de l’institution"]
[null,"c)","Le concept pédagogique est mis à jour et revu régulièrement, en collaboration avec le personnel d'encadrement"]
[]
[null,null,"Commentaires / constats "]
[]
[null,null,"Recommandations"]
[]
[]
[null,4.3,"La mise en œuvre du concept pédagogique respecte le cadre légal",null,null,null,null,null,null,"Références légales",null,"Points max","Résultat"]
[null,null,null,null,null,null,null,null,null,"art. 3a al. 1 let. a LAJE; art. 15 al. 1 let. a et c OPE",null,{"$f":"L193+L204+L214+L224+L236+L249","v":18},{"$f":"IF(N189>=13,\"Conforme\",IF(N189<=8,\"Non conforme\",\"Partiellement conforme\"))","v":"Non conforme"},{"$f":"M197+M207+M217+M229+M242+M252","v":0}]
[null,null,"18 à 13 points = conforme",null,null,"12 à 9 points = partiellement conforme",null,null,null,"8 à 0 points = non conforme"]
[]
[null,"4.3.1","Sécurité affective"]
[null,null,null,null,null,null,null,null,null,null,null,3,"Check"]
[null,"a)","La direction propose une organisation stable qui respecte les besoins des enfants, notamment en limitant le nombre d’intervenant-e-s auprès des enfants et en permettant l’appartenance de l’enfant à un groupe",null,null,null,null,null,null,null,null,null,null,{"$f":"IF(M194=\"x\",1,0)","v":0}]
[null,"b)","L’enfant est libre d’exprimer ses besoins et ses émotions, qui sont prises en compte et considérées par le personnel d’encadrement",null,null,null,null,null,null,null,null,null,null,{"$f":"IF(M195=\"x\",1,0)","v":0}]
[null,"c)","Le personnel d’encadrement est disponible et porte une attention adéquate aux enfants",null,null,null,null,null,null,null,null,null,null,{"$f":"IF(M196=\"x\",1,0)","v":0}]
[null,null,null,null,null,null,null,null,null,null,null,null,{"$f":"SUM(N194:N196)","v":0}]
[null,null,"Commentaires / constats "]
[]
[null,null,"Recommandations"]
[]
[]
[null,"4.3.2","Prise en compte de l’individualité de chacun dans le collectif "]
[null,null,null,null,null,null,null,null,null,null,null,2,"Check"]
[null,"a)","L’enfant est respecté dans son individualité et ses spécificités sont connues par le personnel d’encadrement ",null,null,null,null,null,null,null,null,null,null,{"$f":"IF(M205=\"x\",1,0)","v":0}]
[null,"b)","Les règles et les limites sont pensées et communiquées de manière à accompagner les enfants dans leur développement",null,null,null,null,null,null,null,null,null,null,{"$f":"IF(M206=\"x\",1,0)","v":0}]
[null,null,null,null,null,null,null,null,null,null,null,null,{"$f":"SUM(N205:N206)","v":0}]
[null,null,"Commentaires / constats "]
[]
[null,null,"Recommandations"]
[]
[]
[null,"4.3.3","Langage et interaction verbale, non verbale et gestion des émotions"]
[null,null,null,null,null,null,null,null,null,null,null,2,"Check"]
[null,"a)","Un langage verbal et non verbal adapté aux compétences des enfants et respectueux de chacun (vocabulaire, gestuelle et tonalité) est utilisé",null,null,null,null,null,null,null,null,null,null,{"$f":"IF(M215=\"x\",1,0)","v":0}]
[null,"b)","Le climat vise à favoriser des interactions sociales positives entre les enfants",null,null,null,null,null,null,null,null,null,null,{"$f":"IF(M216=\"x\",1,0)","v":0}]
[null,null,null,null,null,null,null,null,null,null,null,null,{"$f":"SUM(N215:N216)","v":0}]
[null,null,"Commentaires / constats "]
[]
[null,null,"Recommandations"]
[]
[]
[null,"4.3.4","Jeu, matériel et activité "]
[null,null,null,null,null,null,null,null,null,null,null,4,"Check"]
[null,"a)","L’enfant bénéficie de temps suffisant pour le jeu",null,null,null,null,null,null,null,null,null,null,{"$f":"IF(M225=\"x\",1,0)","v":0}]
[null,"b)","Il est libre de participer ou non à certaines activités ludiques",null,null,null,null,null,null,null,null,null,null,{"$f":"IF(M226=\"x\",1,0)","v":0}]
[null,"c)","La curiosité et les découvertes de l’enfant sont stimulées par différentes propositions qui lui sont offertes",null,null,null,null,null,null,null,null,null,null,{"$f":"IF(M227=\"x\",1,0)","v":0}]
[null,"d)","L’enfant a, à sa disposition et en suffisance, du matériel varié, adapté à son âge et organisé en fonction de ses compétences",null,null,null,null,null,null,null,null,null,null,{"$f":"IF(M228=\"x\",1,0)","v":0}]
[null,null,null,null,null,null,null,null,null,null,null,null,{"$f":"SUM(N225:N228)","v":0}]
[null,null,"Commentaires / constats "]
[]
[null,null,"Recommandations"]
[]
[]
[null,"4.3.5","Prise en compte des besoins physiologiques de chacun (repas, repos, etc.) "]
[null,null,null,null,null,null,null,null,null,null,null,5,"Check"]
[null,"a)","L’enfant peut se reposer lorsqu'il en ressent le besoin",null,null,null,null,null,null,null,null,null,null,{"$f":"IF(M237=\"x\",1,0)","v":0}]
[null,"b)","Le besoin de mouvement des enfants est reconnu et respecté",null,null,null,null,null,null,null,null,null,null,{"$f":"IF(M238=\"x\",1,0)","v":0}]
[null,"c)","L’organisation de l’accueil proposé aux enfants  est adaptée à l’âge, aux ressources et aux besoins individuels des enfants ",null,null,null,null,null,null,null,null,null,null,{"$f":"IF(M239=\"x\",1,0)","v":0}]
[null,"d)","L’enfant a accès à de l'eau de manière fréquente et un moment de collation est proposé",null,null,null,null,null,null,null,null,null,null,{"$f":"IF(M240=\"x\",1,0)","v":0}]
[null,"e)","L’enfant bénéficie de soins adaptés: il est changé ou peut aller aux toilettes selon ses besoins ",null,null,null,null,null,null,null,null,null,null,{"$f":"IF(M241=\"x\",1,0)","v":0}]
[null,null,null,null,null,null,null,null,null,null,null,null,{"$f":"SUM(N237:N241)","v":0}]
[null,null,"Commentaires / constats "]
[]
[null,null,"Recommandations"]
[]
[]
[null,"4.3.6","Autonomie"]
[null,null,null,null,null,null,null,null,null,null,null,2,"Check"]
[null,"a)","L’enfant bénéficie d’un environnement aménagé et organisé de façon à favoriser des actes autonomes",null,null,null,null,null,null,null,null,null,null,{"$f":"IF(M250=\"x\",1,0)","v":0}]
[null,"b)","Il est soutenu au besoin dans sa prise d'initiative, dans la réalisation de certaines tâches",null,null,null,null,null,null,null,null,null,null,{"$f":"IF(M251=\"x\",1,0)","v":0}]
[null,null,null,null,null,null,null,null,null,null,null,null,{"$f":"SUM(N250:N251)","v":0}]
[null,null,"Commentaires / constats "]
[]
[null,null,"Recommandations"]
[]
[]
[null,null,"Résultat - constats et/ou recommandations"]
[]
[]
[null,null,"Résultat ",null,null,null,{"$f":"Récap!L34","v":"Non conforme"},null,null,null,null,null,null,null,null,"Pour que le résultat s'affiche correctement,"]
[null,null,null,null,null,null,null,null,null,null,null,null,null,null,null,"chaque rubrique doit être complétée"]
[]
[null,null,"Le résultat \"conforme\" atteste de la conformité de l'institution au regard du cadre légal."]
[null,null,"En cas de résultat partiellement conforme ou non-conforme (résultat \"orange\" ou \"rouge\"), l'OAJE mettra en place un suivi renforcé de l'institution, jusqu'à ce que cette dernière réponde à nouveau aux critères de conformité. Durant la période de suivi renforcé, l'institution conserve son autorisation d'exploiter. Toutefois, en fonction de l'évolution de la situation, l'OAJE se réserve le droit de modifier les conditions d'autorisation, voire de la révoquer.\nLes critères insuffisants font l'objet d'une motivation et il est de la responsabilité de l'institution d'y remédier.\nL'institution dispose d'un délai de 15 jours pour faire parvenir ses commentaires sur la présente évaluation (qui seront annexés au présent document).\n\n"]
[null,null,"Dans tous les cas, l'OAJE reste à disposition pour tout renseignement complémentaire."]
[]
[null,"No item","A l'issue de la visite, les points suivants nécessitent une mise en conformité",null,null,null,null,null,null,null,null,"Délai"]
[1]
[2]
[3]
[4]
[5]
[6]
[7]
[8]
[9]
[10]
[]
[]
[null,"No item","A l'issue de la visite, les points suivants nécessitent une attention particulière au titre de recommandation"]
[1]
[2]
[3]
[4]
[5]
[6]
[7]
[8]
[9]
[10]

{"sheet":"Récap","index":2,"n_rows":55,"n_cols":14,"rows_kept":55,"cut":false,"hidden":false,"merged":[[53,2,53,10],[53,11,53,12],[54,2,54,10],[54,11,54,12],[50,2,50,10],[50,11,50,12],[51,2,51,10],[51,11,51,12],[52,2,52,10],[52,11,52,12],[47,2,47,10],[47,11,47,12],[48,2,48,10],[48,11,48,12],[49,2,49,10],[49,11,49,12],[44,2,44,10],[45,2,45,10],[45,11,45,12],[46,2,46,10],[46,11,46,12],[44,11,44,12],[0,13,6,17],[1,1,1,2],[33,11,33,12],[18,11,18,12],[2,3,2,12],[5,3,5,12],[8,0,8,11]]}
[null,null,null,null,null,null,null,null,null,null,null,null,null,"Hors zone impression"]
[null,"Office de l'accueil\nde jour des enfants"]
[null,"de jour des enfants",null,"RECAPITULATIF - GRILLE DE SURVEILLANCE "]
[]
[null,"Rue de la Paix 4"]
[null,"1014 Lausanne",null," DE L’ACCUEIL COLLECTIF DE JOUR PRESCOLAIRE A LA DEMI-JOURNEE"]
[]
[]
["Informations sur l'institution"]
[]
[null,null,"Nom de l'institution",{"$f":"'Grille de surveillance'!E11","v":0},null,null,null,null,"N° autorisation",{"$f":"'Grille de surveillance'!L11","v":0}]
[null,null,"Nom de la direction",{"$f":"'Grille de surveillance'!E12","v":0},null,null,null,null,"Date de la précédente visite",{"$f":"'Grille de surveillance'!L12","v":"00:00:00"}]
[null,null,"Adresse mail de la direction",{"$f":"'Grille de surveillance'!E13","v":0},null,null,null,null,"Date de la visite",{"$f":"'Grille de surveillance'!L13","v":"00:00:00"}]
[null,null,"Adresse mail de l'exploitant",{"$f":"'Grille de surveillance'!E14","v":0},null,null,null,null,"Horaire de la visite (de xh à xh)",{"$f":"'Grille de surveillance'!L14","v":0}]
[null,null,"Adresse de l'institution",{"$f":"'Grille de surveillance'!E15","v":0}]
[null,null,null,{"$f":"'Grille de surveillance'!E16","v":0}]
[null,null,"Nom(s) CEMA",{"$f":"'Grille de surveillance'!E17","v":0}]
[]
[null,"Pondération des normes et des critères de la grille de surveillance du préscolaire à la journée",null,null,null,null,null,null,null,null,null,"Récapitulatif des points acquis"]
[null,null,null,null,null,null,null,null,null,null,null,"Point max","Résulat"]
[null,{"$f":"'Grille de surveillance'!B38","v":1.1000000000000001},{"$f":"'Grille de surveillance'!C38","v":"Les responsabilités de la direction de l’institution sont conformes aux directives "},null,null,null,null,null,null,null,null,{"$f":"'Grille de surveillance'!L39","v":3},{"$f":"'Grille de surveillance'!M39","v":0}]
[null,{"$f":"'Grille de surveillance'!B51","v":1.2},{"$f":"'Grille de surveillance'!C51","v":"Les exigences légales relatives au taux d’activité de la direction ainsi qu’à son organisation sont respectées "},null,null,null,null,null,null,null,null,{"$f":"'Grille de surveillance'!L52","v":2},{"$f":"'Grille de surveillance'!M52","v":0}]
[null,{"$f":"'Grille de surveillance'!B63","v":1.3},{"$f":"'Grille de surveillance'!C63","v":"Le taux d’encadrement éducatif des enfants accueillis est conforme aux directives "},null,null,null,null,null,null,null,null,null,{"$f":"'Grille de surveillance'!M64","v":"Partiellement conforme"},"4 = conforme ; 3 - 0  = partiellement conforme"]
[null,{"$f":"'Grille de surveillance'!B83","v":1.4},{"$f":"'Grille de surveillance'!C83","v":"Les conditions d’accueil "},null,null,null,null,null,null,null,null,null,{"$f":"'Grille de surveillance'!M84","v":"Partiellement conforme"},"3 = conforme ;  2 - 0  = partiellement conforme"]
[null,{"$f":"'Grille de surveillance'!B98","v":2.1},{"$f":"'Grille de surveillance'!C98","v":"La sécurité physique des enfants est assurée "},null,null,null,null,null,null,null,null,null,{"$f":"'Grille de surveillance'!M99","v":"Non conforme"},"5 - 4 = conforme ; 3 = partiellement conforme ; 2 - 0 = non conforme"]
[null,{"$f":"'Grille de surveillance'!B119","v":2.2000000000000002},{"$f":"'Grille de surveillance'!C119","v":"Toutes les mesures nécessaires touchant à la santé des enfants, à l’hygiène des locaux, et du matériel sont prises "},null,null,null,null,null,null,null,null,null,{"$f":"'Grille de surveillance'!M120","v":"Non conforme"},"5 - 4 = conforme ; 3 = partiellement conforme ;  2 - 0 = non conforme"]
[null,{"$f":"'Grille de surveillance'!B137","v":3.1},{"$f":"'Grille de surveillance'!C137","v":"Aménagements et équipements"},null,null,null,null,null,null,null,null,{"$f":"'Grille de surveillance'!L138","v":2},{"$f":"'Grille de surveillance'!M138","v":0}]
[null,{"$f":"'Grille de surveillance'!B149","v":3.2},{"$f":"'Grille de surveillance'!C149","v":"Les locaux"},null,null,null,null,null,null,null,null,null,{"$f":"'Grille de surveillance'!M150","v":"Partiellement conforme"},"3 = conforme ; 2 - 0  = partiellement conforme"]
[null,{"$f":"'Grille de surveillance'!B164","v":4.0999999999999996},{"$f":"'Grille de surveillance'!C164","v":"Le projet institutionnel"},null,null,null,null,null,null,null,null,{"$f":"'Grille de surveillance'!L165","v":1},{"$f":"'Grille de surveillance'!M165","v":0}]
[null,{"$f":"'Grille de surveillance'!B175","v":4.2},{"$f":"'Grille de surveillance'!C175","v":"Le concept pédagogique "},null,null,null,null,null,null,null,null,{"$f":"'Grille de surveillance'!L176","v":3},{"$f":"'Grille de surveillance'!M176","v":0}]
[null,{"$f":"'Grille de surveillance'!B188","v":4.3},{"$f":"'Grille de surveillance'!C188","v":"La mise en œuvre du concept pédagogique respecte le cadre légal"},null,null,null,null,null,null,null,null,null,{"$f":"'Grille de surveillance'!M189","v":"Non conforme"},"18 - 13 = conforme ; 12 - 9 = partiellement conforme ; 8 - 0 = non conforme"]
[null,null,null,null,null,null,null,null,null,null,"Total",{"$f":"SUM(L21:L31)","v":11},{"$f":"SUM(M21:M31)","v":0}]
[null,null,"Conforme",null,"Entre 11 et 8"]
[null,null,"Partiellement conforme",null,"Entre 7 et 6",null,"[75% - 50%]",null,null,null,"Résultat",{"$f":"IF(OR(M32<=5,M25=\"Non conforme\",M26=\"Non conforme\",M31=\"Non conforme\"),\"Non conforme\",IF(OR(M32<=7,M32<=6,M23=\"Partiellement conforme\",M24=\"Partiellement conforme\",M25=\"Partiellement conforme\",M26=\"Partiellement conforme\",M28=\"Partiellement conforme\",M31=\"Partiellement conforme\"),\"Partiellement conforme\",\"Conforme\"))","v":"Non conforme"}]
[null,null,"Non conforme",null,"Entre 5 et 0",null,"[-50%]"]
[]
[null,"ð","les items 1.3; 1.4; 2.1; 2.2; 3.2 et 4.3 font basculer le résultat indépendamment du total de points acquis:"]
[null,null,1.3,"4 = conforme ; 3 - 0  = partiellement conforme"]
[null,null,1.4,"3 = conforme ; 2 - 0  = partiellement conforme"]
[null,null,2.1,"5 - 4 = conforme ; 3 = partiellement conforme ; 2 - 0 = non conforme"]
[null,null,2.2000000000000002,"5 - 4 = conforme ; 3 = partiellement conforme ; 2 - 0 = non conforme"]
[null,null,3.2,"3 = conforme ; 2 -0  = partiellement conforme"]
[null,null,4.3,"18 - 13 = conforme ; 12 - 9 = partiellement conforme ; 8 - 0 = non conforme"]
[]
[null,"No item","A l'issue de la visite, les points suivants nécessitent une mise en conformité",null,null,null,null,null,null,null,null,"Délai"]
[1,{"$f":"'Grille de surveillance'!B269","v":0},{"$f":"'Grille de surveillance'!C269:K269","v":0},null,null,null,null,null,null,null,null,{"$f":"'Grille de surveillance'!L269:M269","v":0}]
[2,{"$f":"'Grille de surveillance'!B270","v":0},{"$f":"'Grille de surveillance'!C270:K270","v":0},null,null,null,null,null,null,null,null,{"$f":"'Grille de surveillance'!L270:M270","v":0}]
[3,{"$f":"'Grille de surveillance'!B271","v":0},{"$f":"'Grille de surveillance'!C271:K271","v":0},null,null,null,null,null,null,null,null,{"$f":"'Grille de surveillance'!L271:M271","v":0}]
[4,{"$f":"'Grille de surveillance'!B272","v":0},{"$f":"'Grille de surveillance'!C272:K272","v":0},null,null,null,null,null,null,null,null,{"$f":"'Grille de surveillance'!L272:M272","v":0}]
[5,{"$f":"'Grille de surveillance'!B273","v":0},{"$f":"'Grille de surveillance'!C273:K273","v":0},null,null,null,null,null,null,null,null,{"$f":"'Grille de surveillance'!L273:M273","v":0}]
[6,{"$f":"'Grille de surveillance'!B274","v":0},{"$f":"'Grille de surveillance'!C274:K274","v":0},null,null,null,null,null,null,null,null,{"$f":"'Grille de surveillance'!L274:M274","v":0}]
[7,{"$f":"'Grille de surveillance'!B275","v":0},{"$f":"'Grille de surveillance'!C275:K275","v":0},null,null,null,null,null,null,null,null,{"$f":"'Grille de surveillance'!L275:M275","v":0}]
[8,{"$f":"'Grille de surveillance'!B276","v":0},{"$f":"'Grille de surveillance'!C276:K276","v":0},null,null,null,null,null,null,null,null,{"$f":"'Grille de surveillance'!L276:M276","v":0}]
[9,{"$f":"'Grille de surveillance'!B277","v":0},{"$f":"'Grille de surveillance'!C277:K277","v":0},null,null,null,null,null,null,null,null,{"$f":"'Grille de surveillance'!L277:M277","v":0}]
[10,{"$f":"'Grille de surveillance'!B278","v":0},{"$f":"'Grille de surveillance'!C278:K278","v":0},null,null,null,null,null,null,null,null,{"$f":"'Grille de surveillance'!L278:M278","v":0}]

{"sheet":"Pièces contrôlées","index":3,"n_rows":39,"n_cols":14,"rows_kept":39,"cut":false,"hidden":false,"merged":[[39,0,39,12],[27,1,27,3],[34,1,34,3],[29,1,29,3],[28,1,28,3],[34,11,34,12],[35,11,35,12],[29,11,29,12],[30,11,30,12],[31,11,31,12],[32,11,32,12],[33,11,33,12],[29,8,29,10],[31,1,31,3],[30,8,30,10],[31,8,31,10],[24,4,24,5],[25,4,25,5],[19,4,21,5],[22,8,22,10],[23,8,23,10],[24,8,24,10],[25,8,25,10],[19,7,21,10],[23,1,23,3],[24,1,24,3],[25,1,25,3],[26,1,26,3],[0,13,6,16],[1,1,1,2],[2,3,2,11],[4,3,4,11],[5,10,5,11],[8,0,8,12],[19,13,21,16],[22,1,22,3],[19,0,21,3],[19,11,21,12],[22,4,22,5],[23,4,23,5],[22,11,22,12],[23,11,23,12],[26,8,26,10],[27,8,27,10],[28,8,28,10],[24,11,24,12],[25,11,25,12],[26,11,26,12],[27,11,27,12],[28,11,28,12],[26,4,26,5],[27,4,27,5],[28,4,28,5],[29,4,29,5],[30,1,30,3],[32,8,32,10],[31,4,31,5],[32,4,32,5],[30,4,30,5],[32,1,32,3],[36,8,36,10],[36,4,36,5],[36,11,36,12],[33,1,33,3],[35,1,35,3],[33,8,33,10],[34,8,34,10],[35,8,35,10],[33,4,33,5],[34,4,34,5],[35,4,35,5]]}
[null,null,null,null,null,null,null,null,null,null,null,null,null,"Hors zone impression"]
[null,"Office de l'accueil\nde jour des enfants"]
[null,"de jour des enfants",null,"PIECES CONTROLEES"]
[]
[null,"Rue de la Paix 4",null," DE L’ACCUEIL COLLECTIF DE JOUR PRESCOLAIRE A LA DEMI-JOURNEE"]
[null,"1014 Lausanne"]
[]
[]
["Informations sur l'institution"]
[]
[null,null,"Nom de l'institution",{"$f":"'Grille de surveillance'!E11","v":0},null,null,null,null,"N° autorisation",{"$f":"'Grille de surveillance'!L11","v":0}]
[null,null,"Nom de la direction",{"$f":"'Grille de surveillance'!E12","v":0},null,null,null,null,"Date de la précédente visite",{"$f":"'Grille de surveillance'!L12","v":"00:00:00"}]
[null,null,"Adresse mail de la direction",{"$f":"'Grille de surveillance'!E13","v":0},null,null,null,null,"Date de la visite",{"$f":"'Grille de surveillance'!L13","v":"00:00:00"}]
[null,null,"Adresse mail de l'exploitant",{"$f":"'Grille de surveillance'!E14","v":0},null,null,null,null,"Horaire de la visite (de xh à xh)",{"$f":"'Grille de surveillance'!L14","v":0}]
[null,null,"Adresse de l'institution",{"$f":"'Grille de surveillance'!E15","v":0}]
[null,null,null,{"$f":"'Grille de surveillance'!E16","v":0}]
[null,null,"Nom(s) CEMA",{"$f":"'Grille de surveillance'!E17","v":0}]
[]
[]
["Documents à remettre à l'OAJE",null,null,null,"Visa CEMA",null,null,"Documents à remettre LORS de la visite",null,null,null,"Visa CEMA",null,"MARCHE A SUIVRE"]
[]
[]
[null,"Si exigée, réponse écrite aux demandes faites dans le dernier rapport de l'ECA (à envoyer en copie à l'ECA) (police, attestation ou facture)",null,null,null,null,null,null,"Planning hebdomadaire ou mensuel des enfants (nom, prénom, âge et degré scolaire)",null,null,null,null,"Ü Complétez les cellules des documents demandés par un  \"x\""]
[null,"Concept pédagogique à jour",null,null,null,null,null,null,"Horaire du personnel "]
[null,"Règlement de l'institution à jour",null,null,null,null,null,null,"Eventuelle liste des remplaçant-e-s"]
[null,"Assurance RC en vigueur"]
[null,"Dernier rapport de l'OFCO si manipulation de denrées alimentaires"]
[null,"Procédure incendie et autres catastrophes naturelles à jour"]
[null,"Procédure accidents, maladies et épidémies à jour"]
[null,"Procédure disparition d'enfants à jour"]
[null,"Procédure suspicion de mauvais traitement à jour"]
[null,"Procédure plaintes des parents à jour"]
[null,"Procédure pour les activités extérieures à jour"]
[null,"Statuts de l'exploitant (si pertinent) à jour"]
[null,"Extrait du registre du commerce (si pertinent) à jour"]
[null,"Liste des membres de l'organe exécutif (si pertinent) à jour"]
[]
[]
["Commentaires "]

{"sheet":"Donnees","index":4,"n_rows":9,"n_cols":8,"rows_kept":9,"cut":false,"hidden":true,"merged":[[2,2,2,3],[2,4,2,5],[2,6,2,7],[2,1,3,1]]}
[]
[]
[null,"Point","Non-conformité",null,"Conformité partielle ",null,"Conformité"]
[null,null,"de","à","de","à","de","à"]
[null,1.3,null,null,0,3]
[null,2.1,0,2,3,3,4,1000]
[null,2.2000000000000002,0,2,3,3,4,1000]
[null,3.3,null,null,0,4]
[null,4.3,0,9,10,14]